bitfinex/quotes_SOLUSD_20250903
["timestamp","ask_amount","ask_price","bid_price","bid_amount"]
[1756872042551,0.06,210.36,210.35,3.12530189]
[1756872043729,0.06,210.36,210.35,7.87928334]
[1756872045430,0.06,210.36,210.35,21.47487735]
[1756872045646,0.06,210.36,210.35,101.17487735]
[1756872046754,0.78,210.36,210.33,19.04043982]
[1756872047059,0.72,210.35,210.33,4.75438539]
[1756872047236,37.74,210.34,210.33,4.75438539]
[1756872048447,37.74,210.34,210.32,4.7846326]
[1756872048649,0.72,210.33,210.32,4.7846326]
[1756872048959,0.72,210.33,210.32,0.03]
[1756872049963,37.02,210.33,210.32,0.03]
[1756872050165,37.74,210.33,210.32,0.03]
[1756872053240,37.02,210.34,210.32,0.03]
[1756872053549,37.02,210.34,210.32,0.31]
[1756872054169,37.02,210.35,210.32,0.31]
[1756872054541,37.02,210.35,210.33,4.7544335]
[1756872054860,37.08,210.36,210.33,4.7544335]
[1756872057247,37.08,210.36,210.33,7.87973539]
[1756872057450,37.08,210.36,210.33,9.19827224]
[1756872057852,0.06,210.36,210.33,9.19827224]
[1756872058939,0.06,210.36,210.33,9.47827224]
[1756872059244,0.06,210.36,210.35,4.75398145]
[1756872059554,0.06,210.36,210.35,22.7934142]
[1756872060552,0.06,210.36,210.35,23.0734142]
[1756872060957,1e-08,210.36,210.35,23.0734142]
[1756872062059,1e-08,210.36,210.35,22.7934142]
[1756872063663,1e-08,210.36,210.35,22.93557577]
[1756872063856,1e-08,210.36,210.35,23.21557577]
[1756872064164,1e-08,210.36,210.35,22.93557577]
[1756872065069,1e-08,210.36,210.35,18.34957546]
[1756872065647,0.72000001,210.36,210.35,4.75398145]
[1756872065845,1e-08,210.36,210.35,4.75398145]
[1756872066071,1e-08,210.36,210.34,4.75420747]
[1756872066252,0.72000001,210.36,210.34,4.75420747]
[1756872066451,0.72,210.35,210.34,4.75420747]
[1756872068251,0.72,210.35,210.32,0.03]
[1756872068252,0.72,210.35,210.32,4.78465956]
[1756872068572,0.72,210.34,210.32,4.78465956]
[1756872068770,0.72,210.33,210.32,4.78465956]
[1756872069452,0.72,210.34,210.32,4.78465956]
[1756872069849,1e-08,210.36,210.32,4.78465956]
[1756872070075,0.72,210.34,210.32,4.78465956]
[1756872070553,1e-08,210.36,210.32,4.78465956]
[1756872070762,0.72,210.33,210.32,4.78465956]
[1756872073469,0.72,210.33,210.32,0.03]
[1756872076055,0.72,210.33,210.29,4.78533786]
[1756872076056,0.72,210.33,210.29,0.03]
[1756872076250,26.0,210.3,210.29,0.03]
[1756872076784,26.68,210.3,210.29,0.03]
[1756872078771,31.43511174,210.3,210.29,0.03]
[1756872079564,26.68,210.3,210.29,0.03]
[1756872079878,31.71943488,210.3,210.29,0.03]
[1756872080076,26.96432314,210.3,210.29,0.03]
[1756872080256,26.68,210.3,210.29,0.03]
[1756872080679,31.71943488,210.3,210.29,0.03]
[1756872083378,26.96432314,210.3,210.29,0.03]
[1756872083560,0.96432314,210.3,210.29,0.03]
[1756872084581,31.71943488,210.3,210.29,0.03]
[1756872084775,68.73943488,210.3,210.29,0.03]
[1756872085875,73.4968088,210.3,210.29,0.03]
[1756872086183,63.98432314,210.3,210.29,0.03]
[1756872086377,63.7,210.3,210.29,0.03]
[1756872086784,68.45511174,210.3,210.29,0.03]
[1756872088380,42.45511174,210.3,210.29,0.03]
[1756872088577,42.73943488,210.3,210.29,0.03]
[1756872089273,42.88159645,210.3,210.29,0.03]
[1756872089986,44.78812871,210.3,210.29,0.03]
[1756872090594,42.88159645,210.3,210.29,0.03]
[1756872092684,26.96432314,210.3,210.29,0.03]
[1756872092996,68.73943488,210.3,210.29,0.03]
[1756872093695,0.68,210.3,210.29,0.03]
[1756872093893,37.7,210.3,210.29,0.03]
[1756872097313,42.45511174,210.3,210.29,0.03]
[1756872098109,56.47719046,210.3,210.29,0.03]
[1756872098412,42.88159645,210.3,210.29,0.03]
[1756872098707,44.7881287,210.3,210.29,0.03]
[1756872100606,58.38372271,210.3,210.29,0.03]
[1756872112099,21.36372271,210.3,210.29,0.03]
[1756872112298,58.38372271,210.3,210.29,0.03]
[1756872113303,21.36372271,210.3,210.29,0.03]
[1756872113725,15.50212626,210.3,210.29,0.34]
[1756872113906,0.06,210.32,210.29,0.34]
[1756872114107,37.02,210.31,210.29,0.34]
[1756872114627,37.02,210.31,210.29,0.03]
[1756872114833,63.02,210.31,210.29,0.03]
[1756872115115,63.02,210.31,210.29,0.34]
[1756872115507,63.02,210.31,210.29,0.03]
[1756872115708,63.02,210.31,210.29,0.34]
[1756872115901,63.02,210.31,210.29,0.03]
[1756872116307,26.0,210.31,210.29,0.03]
[1756872116507,0.06,210.32,210.3,0.31]
[1756872116721,37.02,210.31,210.3,0.31]
[1756872117113,37.02,210.31,210.3,5.06511174]
[1756872118813,37.02,210.31,210.3,0.31]
[1756872120121,37.02,210.31,210.3,5.06511174]
[1756872121298,37.02,210.31,210.3,0.31]
[1756872121498,37.02,210.31,210.29,0.03]
[1756872121718,37.72,210.31,210.29,0.03]
[1756872122316,37.02,210.31,210.29,0.03]
[1756872125700,0.7,210.3,210.29,0.03]
[1756872127207,5.73943488,210.3,210.29,0.03]
[1756872127423,5.88159645,210.3,210.29,0.03]
[1756872127624,0.7,210.3,210.29,0.03]
[1756872128130,31.45511174,210.3,210.29,0.03]
[1756872129010,26.7,210.3,210.29,0.03]
[1756872129520,31.45511174,210.3,210.29,0.03]
[1756872129718,31.88159645,210.3,210.29,0.03]
[1756872130635,5.88159645,210.3,210.29,0.03]
[1756872132906,19.47719046,210.3,210.29,0.03]
[1756872135436,56.47719046,210.3,210.29,0.03]
[1756872141822,19.47719046,210.3,210.29,0.03]
[1756872142741,21.38408627,210.3,210.29,0.03]
[1756872143642,47.38408627,210.3,210.29,0.03]
[1756872143829,21.38408627,210.3,210.29,0.03]
[1756872149455,21.38408627,210.3,210.29,1e-08]
[1756872150848,62.3647456,210.3,210.29,1e-08]
[1756872151850,58.40408627,210.3,210.29,1e-08]
[1756872152241,62.36166861,210.3,210.29,1e-08]
[1756872152450,25.34166861,210.3,210.29,1e-08]
[1756872152835,62.36166861,210.3,210.29,1e-08]
[1756872153845,25.34166861,210.3,210.29,1e-08]
[1756872154546,58.40408627,210.3,210.29,1e-08]
[1756872154744,21.38408627,210.3,210.29,1e-08]
[1756872154945,58.40408627,210.3,210.29,1e-08]
[1756872156648,78.40408627,210.3,210.29,1e-08]
[1756872159159,21.38408627,210.3,210.29,1e-08]
[1756872159356,21.38408627,210.3,210.29,0.31000001]
[1756872159357,13.59559401,210.3,210.29,0.31000001]
[1756872159567,50.61559401,210.3,210.29,0.31000001]
[1756872159855,37.30432314,210.3,210.29,0.31000001]
[1756872160390,31.44,210.31,210.29,0.31000001]
[1756872160565,0.42648471,210.3,210.29,0.31000001]
[1756872160741,37.30432314,210.3,210.29,0.31000001]
[1756872161156,37.44648471,210.3,210.29,0.31000001]
[1756872163765,31.5,210.31,210.29,0.31000001]
[1756872164057,37.0,210.3,210.29,7.91068817]
[1756872164654,37.0,210.3,210.29,5.06532522]
[1756872166249,37.0,210.3,210.29,7.91068817]
[1756872166773,31.5,210.31,210.29,7.91068817]
[1756872167064,37.0,210.3,210.29,4.75532522]
[1756872167446,37.0,210.3,210.29,5.06532522]
[1756872168253,37.0,210.3,210.29,7.91068817]
[1756872169653,37.0,210.3,210.29,0.31000001]
[1756872172060,37.0,210.3,210.29,5.06533787]
[1756872172878,37.0,210.3,210.29,7.91070082]
[1756872173472,37.0,210.3,210.29,0.31000001]
[1756872174973,37.0,210.3,210.29,1e-08]
[1756872179047,37.7,210.3,210.29,1e-08]
[1756872181060,37.76,210.3,210.29,1e-08]
[1756872182559,37.06,210.3,210.29,1e-08]
[1756872182750,0.06,210.3,210.29,0.31000001]
[1756872182956,0.06,210.3,210.29,4.75873362]
[1756872183155,37.04,210.3,210.29,4.75873362]
[1756872183363,37.04,210.3,210.29,1e-08]
[1756872183772,37.04,210.3,210.29,5.06533787]
[1756872184674,37.04,210.3,210.29,9.51407148]
[1756872185577,37.04,210.3,210.29,9.20407148]
[1756872186091,37.04,210.3,210.29,4.44873362]
[1756872187186,37.04,210.3,210.29,9.20407148]
[1756872187373,37.04,210.3,210.29,4.75533787]
[1756872192169,37.04,210.3,210.29,1e-08]
[1756872192501,37.7,210.3,210.29,1e-08]
[1756872197491,37.04,210.3,210.29,1e-08]
[1756872197796,0.06,210.3,210.29,4.44873362]
[1756872197992,37.04,210.3,210.29,4.44873362]
[1756872198400,37.04,210.3,210.29,1e-08]
[1756872198577,37.04,210.3,210.29,9.20407148]
[1756872199275,37.04,210.3,210.29,4.75533787]
[1756872199499,37.04,210.3,210.29,9.20407148]
[1756872200777,37.04,210.3,210.29,4.75533787]
[1756872200970,37.04,210.3,210.29,9.20407148]
[1756872202209,37.04,210.3,210.29,4.75533787]
[1756872203689,37.04,210.3,210.29,1e-08]
[1756872204804,37.7,210.3,210.29,1e-08]
[1756872208703,37.04,210.3,210.29,1e-08]
[1756872208907,37.02,210.3,210.29,4.44873362]
[1756872209894,37.02,210.3,210.29,9.20407148]
[1756872212411,37.02,210.3,210.29,1e-08]
[1756872214118,37.68,210.3,210.29,1e-08]
[1756872214712,37.02,210.3,210.29,1e-08]
[1756872221389,0.06,210.3,210.29,1e-08]
[1756872221593,0.06,210.3,210.29,4.75873362]
[1756872221825,0.06,210.3,210.29,6.66417604]
[1756872222015,1e-08,210.32,210.3,13.59559401]
[1756872222218,1e-08,210.36,210.32,0.42648471]
[1756872222409,1e-08,210.36,210.34,18.04432762]
[1756872222601,1e-08,210.36,210.34,0.31]
[1756872222805,1e-08,210.36,210.34,4.44873361]
[1756872223098,1e-08,210.36,210.34,6.6637223]
[1756872223508,1e-08,210.36,210.34,14.60867715]
[1756872224118,1e-08,210.36,210.34,14.91867715]
[1756872224614,1e-08,210.36,210.34,28.51427116]
[1756872224919,1e-08,210.36,210.34,25.01352378]
[1756872225122,1e-08,210.36,210.34,28.51221131]
[1756872225497,1e-08,210.35,210.34,54.65437288]
[1756872226012,1e-08,210.35,210.34,54.93869602]
[1756872226518,1e-08,210.37,210.36,13.59559401]
[1756872226815,1e-08,210.37,210.36,26.29677061]
[1756872227018,1e-08,210.37,210.36,53.03325532]
[1756872227225,0.06,210.39,210.38,18.47081233]
[1756872227226,1e-08,210.39,210.38,18.47081233]
[1756872227433,1e-08,210.39,210.38,22.44483021]
[1756872227603,1e-08,210.4,210.39,13.73775558]
[1756872227942,1e-08,210.4,210.39,21.99517672]
[1756872228224,1e-08,210.4,210.39,59.21949986]
[1756872231008,1e-08,210.41,210.39,27.03257747]
[1756872231323,1e-08,210.41,210.4,22.47046189]
[1756872232132,1e-08,210.41,210.4,27.2233136]
[1756872232313,1e-08,210.41,210.4,66.06730484]
[1756872232625,1e-08,210.41,210.4,108.51730484]
[1756872232820,1e-08,210.41,210.4,145.55634281]
[1756872233123,1e-08,210.41,210.4,108.04201967]
[1756872233300,1e-08,210.41,210.4,104.40117057]
[1756872234612,0.66000001,210.41,210.4,104.40117057]
[1756872235617,0.66000001,210.41,210.39,0.03]
[1756872235928,1e-08,210.41,210.4,4.75285171]
[1756872236422,0.66000001,210.41,210.4,4.75285171]
[1756872236933,0.66000001,210.41,210.39,0.03]
[1756872237617,0.66,210.4,210.39,0.03]
[1756872238119,0.66,210.4,210.39,1.93471656]
[1756872238729,0.66,210.4,210.39,0.03]
[1756872242513,1e-08,210.41,210.39,2.87335862]
[1756872242735,1e-08,210.41,210.4,2.84335862]
[1756872242958,1e-08,210.41,210.4,16.5811142]
[1756872243105,1e-08,210.41,210.4,17.17543734]
[1756872243310,1e-08,210.41,210.4,19.07988183]
[1756872244406,1e-08,210.41,210.4,23.83273354]
[1756872244608,1e-08,210.41,210.4,23.52273354]
[1756872245226,1e-08,210.41,210.4,23.83273354]
[1756872245727,1e-08,210.41,210.4,23.52273354]
[1756872248639,1e-08,210.41,210.4,20.39505178]
[1756872248945,1e-08,210.41,210.4,23.2384104]
[1756872250537,1e-08,210.41,210.4,23.12624883]
[1756872250726,0.66000001,210.41,210.4,23.12624883]
[1756872250934,0.66000001,210.41,210.4,6.6872962]
[1756872251741,1e-08,210.41,210.4,9.53065482]
[1756872251936,0.67000001,210.41,210.4,9.53065482]
[1756872252137,1e-08,210.41,210.4,9.53065482]
[1756872253047,0.67000001,210.41,210.4,23.12624883]
[1756872256347,0.67000001,210.41,210.4,102.82624883]
[1756872256654,1e-08,210.41,210.4,102.82624883]
[1756872257037,0.67000001,210.41,210.4,102.82624883]
[1756872257748,1e-08,210.41,210.4,102.82624883]
[1756872259334,1e-08,210.41,210.4,106.78114296]
[1756872260435,1e-08,210.41,210.4,107.0654661]
[1756872261031,1e-08,210.41,210.4,143.9654661]
[1756872261635,1e-08,210.41,210.4,143.6554661]
[1756872262232,1e-08,210.41,210.4,143.9654661]
[1756872262552,1e-08,210.41,210.4,143.6554661]
[1756872264758,0.67000001,210.41,210.4,106.32898139]
[1756872266458,0.67000001,210.41,210.4,10.19002876]
[1756872266656,0.67000001,210.41,210.4,8.28558427]
[1756872273164,1e-08,210.41,210.4,8.28558427]
[1756872273369,1e-08,210.41,210.4,10.19011944]
[1756872274542,0.67000001,210.41,210.4,10.19011944]
[1756872276647,1e-08,210.41,210.4,10.19011944]
[1756872276952,1e-08,210.41,210.4,13.03347806]
[1756872277345,1e-08,210.41,210.4,107.54084195]
[1756872277658,1e-08,210.41,210.4,107.06555678]
[1756872280075,1e-08,210.41,210.4,106.75555678]
[1756872281771,0.69000001,210.41,210.4,106.32907207]
[1756872282284,1e-08,210.41,210.4,106.32907207]
[1756872285495,0.69000001,210.41,210.4,92.73347806]
[1756872285665,1e-08,210.41,210.4,106.32907207]
[1756872286883,1e-08,210.41,210.4,106.47123364]
[1756872287257,1e-08,210.41,210.4,107.06555678]
[1756872287459,1e-08,210.41,210.4,106.75555678]
[1756872289488,1e-08,210.41,210.4,106.77202795]
[1756872293690,1e-08,210.41,210.4,103.92866933]
[1756872293866,1e-08,210.41,210.4,106.77202795]
[1756872295673,1e-08,210.44,210.43,0.14216157]
[1756872295878,1e-08,210.44,210.43,9.17307996]
[1756872296081,1e-08,210.44,210.43,12.01643858]
[1756872296281,1e-08,210.44,210.43,13.92033919]
[1756872296683,1e-08,210.45,210.44,13.87991715]
[1756872296884,1e-08,210.47,210.46,39.59559401]
[1756872297081,0.75,210.52,210.47,0.14216157]
[1756872297082,0.06,210.52,210.47,0.14216157]
[1756872297284,1e-08,210.5,210.49,16.5811142]
[1756872297597,1e-08,210.52,210.51,13.73775558]
[1756872297893,1e-08,210.52,210.51,25.13500922]
[1756872298269,1e-08,210.52,210.51,39.31500922]
[1756872299478,1e-08,210.52,210.51,40.90713271]
[1756872299672,1e-08,210.52,210.51,40.89459171]
[1756872301896,0.2,210.63,210.55,13.59559401]
[1756872302102,0.2,210.63,210.57,4.43548211]
[1756872302485,0.2,210.63,210.58,21.5338438]
[1756872302673,0.2,210.63,210.58,18.03107612]
[1756872303597,0.2,210.63,210.59,4.74856355]
[1756872303778,0.69,210.62,210.59,4.74856355]
[1756872303974,0.2,210.63,210.61,4.43548211]
[1756872304177,0.2,210.63,210.62,4.43548211]
[1756872304782,0.89,210.63,210.62,4.43548211]
[1756872305596,0.2,210.63,210.62,9.1833693]
[1756872306503,0.2,210.63,210.62,22.77896331]
[1756872307876,0.2,210.63,210.62,37.04667311]
[1756872308501,0.89,210.63,210.62,19.01559699]
[1756872308903,0.89,210.63,210.61,79.7]
[1756872309084,0.69,210.62,210.61,84.4480015]
[1756872309400,0.69,210.62,210.54,4.43548211]
[1756872309693,0.69,210.61,210.54,4.43548211]
[1756872310005,63.04,210.63,210.61,14.27042454]
[1756872310201,63.04,210.63,210.56,4.43548211]
[1756872310410,37.04,210.63,210.58,4.43548211]
[1756872310582,0.69,210.62,210.58,4.43548211]
[1756872310780,0.69,210.61,210.58,4.43548211]
[1756872311012,0.69,210.6,210.58,18.70726442]
[1756872311210,0.69,210.6,210.58,14.27178231]
[1756872311496,0.69,210.59,210.55,4.74946568]
[1756872311673,0.71,210.61,210.57,4.74901457]
[1756872311876,37.04,210.63,210.57,9.18449668]
[1756872312074,0.71,210.6,210.57,9.18449668]
[1756872312476,0.71,210.62,210.57,9.18449668]
[1756872312676,0.71,210.61,210.57,4.74901457]
[1756872312888,0.71,210.61,210.58,18.70658551]
[1756872313089,37.04,210.63,210.58,18.70658551]
[1756872313306,0.71,210.62,210.58,14.2711034]
[1756872313502,0.71,210.61,210.58,14.2711034]
[1756872313799,0.2,210.63,210.6,4.74833808]
[1756872314002,0.91,210.63,210.6,4.74833808]
[1756872314379,0.2,210.63,210.6,4.74833808]
[1756872314899,0.91,210.63,210.61,14.26974577]
[1756872315099,0.2,210.63,210.61,14.26974577]
[1756872315295,0.2,210.63,210.62,13.59559401]
[1756872315898,0.2,210.63,210.62,18.3434812]
[1756872316399,0.2,210.63,210.62,19.18564277]
[1756872316591,0.2,210.63,210.62,23.62112488]
[1756872317603,0.2,210.63,210.62,23.90544802]
[1756872317604,1e-08,210.63,210.62,23.90544802]
[1756872317806,1e-08,210.63,210.62,27.38806863]
[1756872318693,1e-08,210.63,210.62,32.14830834]
[1756872319403,1e-08,210.63,210.62,111.84830834]
[1756872319579,1e-08,210.63,210.62,111.87830834]
[1756872319783,1e-08,210.63,210.62,107.44282623]
[1756872319985,1e-08,210.63,210.62,148.7163132]
[1756872320690,1e-08,210.63,210.62,111.8763132]
[1756872322897,1e-08,210.63,210.62,113.77831267]
[1756872323610,1e-08,210.63,210.62,113.77547805]
[1756872326097,1e-08,210.63,210.62,113.77430817]
[1756872327199,1e-08,210.63,210.62,113.07430817]
[1756872327405,1e-08,210.63,210.62,149.89430817]
[1756872327707,1e-08,210.63,210.62,175.89430817]
[1756872329396,1e-08,210.63,210.62,175.89705549]
[1756872329912,0.71000001,210.63,210.62,129.45484896]
[1756872330089,1e-08,210.63,210.62,125.97548067]
[1756872330292,1e-08,210.63,210.62,129.45583124]
[1756872330691,0.71000001,210.63,210.62,129.45583124]
[1756872331818,0.71000001,210.63,210.62,86.37988666]
[1756872333401,0.71000001,210.63,210.62,0.03]
[1756872333600,0.71000001,210.63,210.59,0.03]
[1756872333793,0.71000001,210.63,210.59,1.93281379]
[1756872333794,26.0,210.62,210.59,1.93281379]
[1756872333995,0.71,210.61,210.59,0.03]
[1756872337215,5.45814886,210.61,210.59,0.03]
[1756872338019,26.0,210.58,210.57,0.03]
[1756872338521,26.71,210.58,210.57,0.03]
[1756872338695,0.71,210.58,210.57,0.03]
[1756872339304,37.53,210.58,210.57,0.03]
[1756872342023,26.0,210.55,210.52,4.7501425]
[1756872342203,0.71,210.54,210.5,4.75051954]
[1756872342403,0.71,210.53,210.5,4.75051954]
[1756872342603,37.53,210.52,210.5,4.75051954]
[1756872342804,0.71,210.51,210.5,4.75051954]
[1756872343018,0.71,210.51,210.49,3.50031089]
[1756872343225,0.71,210.5,210.48,4.75082439]
[1756872343423,0.71,210.5,210.49,3.50031089]
[1756872345517,0.71,210.5,210.49,4.75081951]
[1756872346200,36.82,210.52,210.49,4.75081951]
[1756872346394,0.71,210.51,210.49,4.75081951]
[1756872346608,0.71,210.5,210.49,4.75081951]
[1756872347441,0.71,210.5,210.48,4.75104522]
[1756872347726,0.71,210.5,210.48,8.24869398]
[1756872347923,0.71,210.5,210.48,4.75104522]
[1756872348114,37.53,210.52,210.48,8.24869398]
[1756872348311,0.71,210.51,210.48,4.75104522]
[1756872348613,0.71,210.51,210.48,19.03029984]
[1756872349504,0.71,210.51,210.48,4.75104522]
[1756872349812,0.71,210.5,210.48,4.75104522]
[1756872350000,0.71,210.49,210.47,19.03051086]
[1756872350201,0.71,210.48,210.47,19.03051086]
[1756872350617,0.71,210.48,210.47,4.75125624]
[1756872351411,0.71,210.48,210.46,4.75149672]
[1756872351617,36.84,210.47,210.46,4.75149672]
[1756872352310,37.55,210.47,210.46,4.75149672]
[1756872354608,37.55,210.47,210.46,0.03]
[1756872361939,63.55,210.47,210.46,0.03]
[1756872364530,26.71,210.47,210.46,0.03]
[1756872364733,37.55,210.47,210.46,0.03]
[1756872365222,36.84,210.47,210.46,0.03]
[1756872365820,37.55,210.47,210.46,0.03]
[1756872369740,36.84,210.47,210.46,0.03]
[1756872371054,37.55,210.47,210.46,0.03]
[1756872372345,0.71,210.47,210.46,0.03]
[1756872372525,37.55,210.47,210.46,0.03]
[1756872373053,37.55,210.47,210.43,0.03]
[1756872378046,0.28432314,210.46,210.43,0.03]
[1756872378351,26.0,210.44,210.43,0.03]
[1756872378527,63.5,210.44,210.43,0.03]
[1756872380546,63.5,210.44,210.41,0.03]
[1756872380845,0.42648471,210.43,210.41,0.03]
[1756872381052,37.12432314,210.42,210.41,0.03]
[1756872381243,37.78432314,210.42,210.41,0.03]
[1756872381549,42.5367231,210.42,210.41,0.03]
[1756872382045,37.78432314,210.42,210.41,0.03]
[1756872382248,26.66,210.43,210.41,0.03]
[1756872382547,36.84,210.42,210.41,0.03]
[1756872383045,36.84,210.42,210.41,0.75]
[1756872383735,36.84,210.42,210.41,5.50262582]
[1756872384540,36.84,210.42,210.41,4.78262582]
[1756872385127,36.84,210.42,210.41,0.03]
[1756872386329,37.5,210.42,210.41,0.03]
[1756872388444,36.84,210.42,210.41,0.03]
[1756872389647,37.5,210.42,210.41,0.03]
[1756872392537,42.5367231,210.42,210.41,0.03]
[1756872392731,37.78432314,210.42,210.41,0.03]
[1756872392948,63.5,210.42,210.41,0.03]
[1756872393536,68.25239996,210.42,210.41,0.03]
[1756872394759,42.5367231,210.42,210.41,0.03]
[1756872399748,0.66,210.42,210.41,0.03]
[1756872399954,63.5,210.42,210.41,0.03]
[1756872400161,26.66,210.42,210.41,0.03]
[1756872400344,63.5,210.42,210.41,0.03]
[1756872400661,26.66,210.42,210.41,0.03]
[1756872400860,63.5,210.42,210.41,0.03]
[1756872407449,68.25239996,210.42,210.41,0.03]
[1756872408369,63.5,210.42,210.41,0.03]
[1756872409068,68.25239996,210.42,210.41,0.03]
[1756872409680,68.5367231,210.42,210.41,0.03]
[1756872411566,63.78432314,210.42,210.41,0.03]
[1756872412156,63.12432314,210.42,210.41,0.03]
[1756872413468,63.84432314,210.42,210.41,0.03]
[1756872414568,68.5967231,210.42,210.41,0.03]
[1756872418463,63.84432314,210.42,210.41,0.03]
[1756872418665,68.5967231,210.42,210.41,0.03]
[1756872419165,63.84432314,210.42,210.41,0.03]
[1756872419562,63.12432314,210.42,210.41,0.03]
[1756872421669,63.84432314,210.42,210.41,0.03]
[1756872421862,68.5967231,210.42,210.41,0.03]
[1756872424171,63.84432314,210.42,210.41,0.03]
[1756872429186,37.82432314,210.42,210.41,0.03]
[1756872430373,13.87991715,210.41,210.4,0.03]
[1756872430604,13.73775558,210.4,210.39,0.03]
[1756872430985,51.56207872,210.4,210.38,0.03]
[1756872431174,53.46788428,210.4,210.38,0.03]
[1756872431371,57.40206384,210.4,210.38,0.03]
[1756872431569,55.49625828,210.4,210.38,0.03]
[1756872431892,15.64356114,210.39,210.38,0.03]
[1756872432264,16.33356114,210.39,210.38,0.03]
[1756872432766,62.82,210.39,210.38,0.7]
[1756872434866,62.82,210.39,210.38,0.03]
[1756872436389,26.0,210.39,210.38,0.7]
[1756872436892,62.82,210.39,210.38,5.45330354]
[1756872437199,0.34432314,210.43,210.38,5.12016754]
[1756872437200,0.06,210.43,210.38,5.12016754]
[1756872437405,36.82,210.42,210.39,3.507505]
[1756872437589,36.82,210.42,210.4,3.50709722]
[1756872437793,36.82,210.42,210.41,3.50709722]
[1756872438484,0.06,210.43,210.41,7.95226414]
[1756872438671,0.06,210.46,210.43,4.75217411]
[1756872438870,36.88,210.46,210.45,4.44516692]
[1756872439078,36.16,210.46,210.45,8.62226414]
[1756872439281,0.06,210.48,210.45,8.62226414]
[1756872439489,36.88,210.48,210.46,3.50709722]
[1756872439696,36.88,210.48,210.47,3.50709722]
[1756872440291,36.88,210.48,210.43,4.75217411]
[1756872440632,36.88,210.48,210.44,3.49564979]
[1756872440807,36.88,210.48,210.42,4.75239996]
[1756872441009,36.88,210.48,210.43,3.49615665]
[1756872441172,36.88,210.48,210.44,3.49615665]
[1756872441375,36.88,210.48,210.43,3.49465019]
[1756872441684,36.88,210.48,210.42,4.75239996]
[1756872441896,36.88,210.48,210.44,4.75194829]
[1756872442286,0.69,210.47,210.42,8.24575981]
[1756872442481,0.69,210.46,210.42,4.75229711]
[1756872442696,36.8,210.45,210.42,4.75229711]
[1756872444191,0.69,210.44,210.4,3.49253972]
[1756872444378,0.69,210.43,210.39,4.75286182]
[1756872444579,36.8,210.42,210.39,8.24568437]
[1756872444902,36.8,210.41,210.39,8.24568437]
[1756872445378,36.8,210.41,210.39,4.75286182]
[1756872445795,37.49,210.41,210.38,3.52259871]
[1756872446003,37.49,210.41,210.38,0.03]
[1756872446387,36.8,210.41,210.38,0.03]
[1756872446588,0.69,210.4,210.38,0.03]
[1756872447003,0.69,210.39,210.38,0.03]
[1756872447299,1.90507941,210.47,210.38,0.03]
[1756872447511,63.49,210.46,210.38,0.03]
[1756872448097,63.49,210.46,210.38,4.78330354]
[1756872448292,0.69,210.45,210.38,4.78330354]
[1756872449612,36.8,210.44,210.38,4.78330354]
[1756872450120,37.49,210.44,210.38,4.78330354]
[1756872451312,37.49,210.44,210.38,8.28487226]
[1756872452414,0.69,210.43,210.38,0.03]
[1756872452905,41.55196595,210.44,210.38,0.03]
[1756872452906,0.69,210.42,210.38,4.78328145]
[1756872453410,36.8,210.41,210.38,4.78328145]
[1756872454110,0.69,210.4,210.38,4.78328145]
[1756872454291,0.69,210.4,210.38,0.03]
[1756872454491,36.8,210.41,210.38,0.03]
[1756872455012,37.49,210.41,210.38,0.03]